fUST/lending_fUST_20240220
["ID","MTS","AMOUNT","RATE_DAILY","PERIOD"]
[314549229,1708416639063,-326.08565588,0.00021816,2]
[314549231,1708416639072,-500.0,0.00021816,2]
[314549233,1708416639081,-500.0,0.00021816,2]
[314549234,1708416639090,-500.0,0.00021816,2]
[314549236,1708416639100,-632.73685683,0.00021816,2]
[314549238,1708416639109,-500.0,0.00021816,2]
[314549240,1708416639119,-500.0,0.00021816,2]
[314549242,1708416639132,-500.0,0.00021816,2]
[314549244,1708416639142,-500.0,0.00021816,2]
[314549246,1708416639151,-500.0,0.00021816,2]
[314549248,1708416639160,-500.0,0.00021816,2]
[314549249,1708416639170,-500.0,0.00021816,2]
[314549251,1708416639180,-500.0,0.00021816,2]
[314549253,1708416639189,-500.0,0.00021816,2]
[314549255,1708416639199,-500.0,0.00021816,2]
[314549257,1708416639210,-500.0,0.00021816,2]
[314549259,1708416639220,-500.0,0.00021816,2]
[314549261,1708416639228,-169.72869101,0.00021816,2]
[314549263,1708416639237,-178.66874373,0.00021816,2]
[314549265,1708416639246,-276000.0,0.00021817,2]
[314549267,1708416639255,-608.96298375,0.00021817,2]
[314549269,1708416639264,-3139.36485269,0.00021817,2]
[314549271,1708416639273,-2007.028755,0.000219,2]
[314549272,1708416639282,-580.0,0.000219,2]
[314549274,1708416639292,-357.74862909,0.00021916,2]
[314549276,1708416639302,-362.14165993,0.00021916,2]
[314549278,1708416639311,-194.453166,0.00021916,2]
[314549280,1708416639320,-500.0,0.00021916,2]
[314549282,1708416639330,-500.0,0.00021916,2]
[314549284,1708416639339,-500.0,0.00021916,2]
[314549286,1708416639348,-532.60635817,0.00021916,2]
[314549288,1708416639358,-431.49190558,0.00021916,2]
[314549290,1708416639366,-272.70060267,0.00021916,2]
[314549292,1708416639375,-406784.21887652,0.00021917,2]
[314549295,1708416639394,-2115.16036011,0.00021917,2]
[314549297,1708416639405,-571.36033739,0.00021917,2]
[314549490,1708416641265,-1077.29076156,0.00021917,2]
[314550051,1708416647004,-538.61450309,0.00021785,3]
[314550053,1708416647015,-532.24884834,0.00021785,3]
[314550076,1708416647238,-480.0,0.00021785,3]
[314550107,1708416647527,-2266.02155765,0.00021785,3]
[314550109,1708416647542,-1097.92509092,0.00021785,3]
[314550111,1708416647551,-580.0,0.000218,2]
[314550113,1708416647561,-658.205,0.000219,2]
[314550115,1708416647570,-21288.39108134,0.00021917,2]
[314550118,1708416647582,-1265.6079,0.00021917,2]
[314551243,1708416785012,167.0,0.0003,120]
[314551244,1708417021876,751.0,0.000175,2]
[314551245,1708417324883,5282.95242939,0.000175,2]
[314551333,1708417832287,-404.21853948,0.00018245,2]
[314551335,1708417832297,-587.4710624,0.00018246,2]
[314551337,1708417832306,-166.1319021,0.00018539,2]
[314551339,1708417832316,-17534.8644968,0.0001855,2]
[314551341,1708417832325,-12530.9645963,0.00018603,2]
[314551343,1708417832335,-350.996781,0.00018639,2]
[314551345,1708417832344,-925.537554,0.00018929,2]
[314551348,1708417832354,-804.745079,0.00018933,2]
[314551351,1708417832363,-195.88492128,0.00018937,2]
[314551353,1708417832372,-271.27201225,0.00019817,2]
[314551355,1708417832381,-169.557072,0.00019873,2]
[314551357,1708417832391,-7673.66,0.00020132,3]
[314551360,1708417832401,-6394.72,0.00020132,3]
[314551363,1708417832422,-5328.93,0.00020132,3]
[314551365,1708417832432,-23823.28898011,0.00020142,2]
[314551367,1708417832441,-4704.88996582,0.00020142,2]
[314551369,1708417832451,-1700.00658024,0.00020142,2]
[314551371,1708417832462,-10830.25978672,0.00020142,2]
[314551374,1708417832482,-5859.01161518,0.00020142,2]
[314551502,1708417838363,-27114.14481061,0.00020142,2]
[314551503,1708417838373,-166.13190206,0.00020249,2]
[314551504,1708417838382,-403.8968203,0.00021178,2]
[314551505,1708417838392,-636.72794121,0.00021399,2]
[314551506,1708417838402,-200.0,0.00021698,2]
[314551507,1708417838411,-200.0,0.00021698,2]
[314551508,1708417838423,-200.0,0.00021698,2]
[314551509,1708417838432,-200.0,0.00021698,2]
[314551510,1708417838442,-200.0,0.00021698,2]
[314551511,1708417838452,-200.0,0.00021698,2]
[314551512,1708417838462,-200.0,0.00021698,2]
[314551513,1708417838472,-200.0,0.00021698,2]
[314551514,1708417838490,-200.0,0.00021698,2]
[314551515,1708417838528,-200.0,0.00021698,2]
[314551516,1708417838538,-200.0,0.00021698,2]
[314551517,1708417838550,-200.0,0.00021698,2]
[314551518,1708417838560,-200.0,0.00021698,2]
[314551519,1708417838571,-200.0,0.00021698,2]
[314551520,1708417838582,-200.0,0.00021698,2]
[314551521,1708417838592,-200.0,0.00021698,2]
[314551522,1708417838602,-200.0,0.00021698,2]
[314551523,1708417838612,-200.0,0.00021698,2]
[314551524,1708417838621,-200.0,0.00021698,2]
[314551525,1708417838632,-200.0,0.00021698,2]
[314551526,1708417838642,-200.0,0.00021698,2]
[314551527,1708417838653,-200.0,0.00021698,2]
[314551528,1708417838662,-200.0,0.00021698,2]
[314551529,1708417838675,-16235.95194419,0.00021804,2]
[314551530,1708417838685,-155.92,0.00021806,3]
[314551531,1708417838698,-467.76,0.00021806,3]
[314551532,1708417838708,-181.0279602,0.00021815,2]
[314551533,1708417838717,-1164.370995,0.00021815,2]
[314551534,1708417838727,-212.6648869,0.00021815,2]
[314551535,1708417838736,-169.72869101,0.00021816,2]
[314551536,1708417838746,-500.0,0.00021816,2]
[314551537,1708417838755,-464.9241442,0.00021816,2]
[314551538,1708417838765,-500.0,0.00021816,2]
[314551539,1708417838774,-500.0,0.00021816,2]
[314551540,1708417838783,-500.0,0.00021816,2]
[314551541,1708417838793,-500.0,0.00021816,2]
[314551542,1708417838804,-500.0,0.00021816,2]
[314551543,1708417838812,-500.0,0.00021816,2]
[314551544,1708417838822,-500.0,0.00021816,2]
[314551545,1708417838831,-500.0,0.00021816,2]
[314551546,1708417838840,-500.0,0.00021816,2]
[314551547,1708417838850,-500.0,0.00021816,2]
[314551548,1708417838859,-500.0,0.00021816,2]
[314551549,1708417838869,-500.0,0.00021816,2]
[314551550,1708417838879,-500.0,0.00021816,2]
[314551551,1708417838890,-632.73685683,0.00021816,2]
[314551552,1708417839066,-500.0,0.00021816,2]
[314551553,1708417839077,-500.0,0.00021816,2]
[314551554,1708417839086,-326.08565588,0.00021816,2]
[314551555,1708417839095,-500.0,0.00021816,2]
[314551556,1708417839104,-500.0,0.00021816,2]
[314551557,1708417839113,-476.85505839,0.00021816,2]
[314551558,1708417839122,-500.0,0.00021816,2]
[314551559,1708417839131,-500.0,0.00021816,2]
[314551560,1708417839140,-500.0,0.00021816,2]
[314551561,1708417839150,-500.0,0.00021816,2]
[314551562,1708417839159,-500.0,0.00021816,2]
[314551563,1708417839168,-500.0,0.00021816,2]
[314551564,1708417839177,-500.0,0.00021816,2]
[314551565,1708417839186,-500.0,0.00021816,2]
[314551566,1708417839195,-500.0,0.00021816,2]
[314551567,1708417839207,-500.0,0.00021816,2]
[314551568,1708417839216,-487.56102827,0.00021816,2]
[314551569,1708417839226,-500.0,0.00021816,2]
[314551570,1708417839235,-500.0,0.00021816,2]
[314551571,1708417839244,-500.0,0.00021816,2]
[314551572,1708417839254,-517.65418873,0.00021816,2]
[314551573,1708417839263,-500.0,0.00021816,2]
[314551574,1708417839273,-626.76416031,0.00021816,2]
[314551575,1708417839282,-500.0,0.00021816,2]
[314551576,1708417839291,-500.0,0.00021816,2]
[314551577,1708417839301,-500.0,0.00021816,2]
[314551578,1708417839312,-500.0,0.00021816,2]
[314551579,1708417839322,-500.0,0.00021816,2]
[314551580,1708417839332,-500.0,0.00021816,2]
[314551581,1708417839341,-632.23556344,0.00021816,2]
[314551582,1708417839351,-500.0,0.00021816,2]
[314551583,1708417839360,-500.0,0.00021816,2]
[314551584,1708417839370,-383.43784741,0.00021816,2]
[314551585,1708417839380,-500.0,0.00021816,2]
[314551586,1708417839390,-500.0,0.00021816,2]
[314551587,1708417839399,-348.3559103,0.00021816,2]
[314551588,1708417839408,-500.0,0.00021816,2]
[314551589,1708417839418,-500.0,0.00021816,2]
[314551590,1708417839427,-200.0,0.00021816,2]
[314551591,1708417839437,-500.0,0.00021816,2]
[314551592,1708417839446,-500.0,0.00021816,2]
[314551593,1708417839456,-500.0,0.00021816,2]
[314551594,1708417839466,-500.0,0.00021816,2]
[314551595,1708417839477,-181.41520631,0.00021816,2]
[314551596,1708417839488,-407.74763233,0.00021816,2]
[314551597,1708417839497,-197.62986041,0.00021816,2]
[314551598,1708417839506,-500.0,0.00021816,2]
[314551599,1708417839517,-500.0,0.00021816,2]
[314551600,1708417839526,-500.0,0.00021816,2]
[314551601,1708417839535,-500.0,0.00021816,2]
[314551602,1708417839545,-276000.0,0.00021817,2]
[314551603,1708417839556,-3139.36485269,0.00021817,2]
[314551604,1708417839567,-274.61037139,0.00021899,2]
[314551605,1708417839577,-2007.028755,0.000219,2]
[314551606,1708417839586,-658.0,0.000219,2]
[314551607,1708417839596,-357.74862909,0.00021915,2]
[314551608,1708417839605,-159.78190745,0.00021916,2]
[314551609,1708417839614,-174.54305424,0.00021916,2]
[314551610,1708417839623,-188.8342715,0.00021916,2]
[314551611,1708417839632,-208.3359498,0.00021916,2]
[314551612,1708417839642,-877057.88871306,0.00021917,2]
[314551613,1708417839835,-535.51548194,0.00021917,2]
[314551773,1708417843512,-4440.78,0.00021907,3]
[314551774,1708417843523,-12148.15613713,0.00021917,2]
[314551775,1708417843536,-1781.69928925,0.00021917,2]
[314551843,1708417846969,-361.98002146,0.00021916,2]
[314551844,1708417846980,-498.93957208,0.00021917,2]
[314551845,1708417846995,-778.34355977,0.00021917,2]
[314551847,1708417847049,-67511.77880123,0.00021917,2]
[314552112,1708419038622,-213.04130257,0.00018519,2]
[314552114,1708419038631,-163.55377005,0.0001852,2]
[314552116,1708419038640,-250.0,0.00018559,2]
[314552118,1708419038649,-24900.0,0.0001862,2]
[314552120,1708419038659,-500.792024,0.0001865,2]
[314552122,1708419038668,-874.4335863,0.00019095,2]
[314552124,1708419038678,-411.5938999,0.00019095,2]
[314552126,1708419038687,-216.1578123,0.0001914,2]
[314552128,1708419038697,-2549.55507,0.00019248,2]
[314552130,1708419038706,-326.69983407,0.00019817,2]
[314552132,1708419038715,-155.108576,0.0002,2]
[314552134,1708419038724,-196.23310343,0.00020042,2]
[314552136,1708419038733,-2834.26,0.00020132,3]
[314552138,1708419038742,-4892.78,0.00020132,3]
[314552140,1708419038751,-4077.32,0.00020132,3]
[314552142,1708419038760,-330.5031,0.00020141,2]
[314552144,1708419038769,-5000.0,0.00020142,2]
[314552146,1708419038779,-50000.0,0.00020142,2]
[314552148,1708419038788,-50000.0,0.00020142,2]
[314552150,1708419038797,-50000.0,0.00020142,2]
[314552152,1708419038807,-50000.0,0.00020142,2]
[314552154,1708419038816,-88806.01991262,0.00020142,2]
[314552156,1708419038825,-5000.0,0.00020142,2]
[314552158,1708419038836,-83207.07741428,0.00020142,2]
[314552160,1708419038847,-4696.98669404,0.00020142,2]
[314552162,1708419038856,-196.23310343,0.00020382,2]
[314552164,1708419038865,-300.0,0.00020428,2]
[314552166,1708419038875,-300.0,0.00020715,2]
[314552168,1708419038884,-196.23310343,0.00020722,2]
[314552170,1708419038893,-3139.36485269,0.00020722,2]
[314552172,1708419038901,-919.28609412,0.00020812,2]
[314552174,1708419038911,-500.0,0.00020822,2]
[314552176,1708419038922,-500.0,0.00020822,2]
[314552178,1708419038931,-500.0,0.00020822,2]
[314552180,1708419038940,-500.0,0.00020822,2]
[314552182,1708419038949,-500.0,0.00020822,2]
[314552184,1708419038958,-500.0,0.00020822,2]
[314552186,1708419038967,-500.0,0.00020822,2]
[314552188,1708419038976,-500.0,0.00020822,2]
[314552190,1708419038985,-500.0,0.00020822,2]
[314552192,1708419038994,-500.0,0.00020822,2]
[314552194,1708419039003,-500.0,0.00020822,2]
[314552196,1708419039012,-500.0,0.00020822,2]
[314552197,1708419039022,-500.0,0.00020822,2]
[314552199,1708419039031,-500.0,0.00020822,2]
[314552201,1708419039040,-500.0,0.00020822,2]
[314552203,1708419039049,-356.85922781,0.00020822,2]
[314552206,1708419039059,-500.0,0.00020822,2]
[314552208,1708419039068,-626.76416031,0.00020822,2]
[314552210,1708419039079,-500.0,0.00020822,2]
[314552212,1708419039089,-500.0,0.00020822,2]
[314552214,1708419039098,-500.0,0.00020822,2]
[314552216,1708419039107,-500.0,0.00020822,2]
[314552218,1708419039116,-500.0,0.00020822,2]
[314552220,1708419039125,-500.0,0.00020822,2]
[314552222,1708419039134,-500.0,0.00020822,2]
[314552224,1708419039143,-500.0,0.00020822,2]
[314552226,1708419039152,-500.0,0.00020822,2]
[314552228,1708419039162,-500.0,0.00020822,2]
[314552230,1708419039170,-500.0,0.00020822,2]
[314552232,1708419039179,-500.0,0.00020822,2]
[314552234,1708419039188,-384.58840157,0.00020822,2]
[314552236,1708419039197,-500.0,0.00020822,2]
[314552238,1708419039207,-500.0,0.00020822,2]
[314552240,1708419039216,-500.0,0.00020822,2]
[314552242,1708419039225,-632.23556344,0.00020822,2]
[314552244,1708419039234,-500.0,0.00020822,2]
[314552246,1708419039244,-500.0,0.00020822,2]
[314552248,1708419039253,-500.0,0.00020822,2]
[314552250,1708419039262,-500.0,0.00020822,2]
[314552252,1708419039273,-500.0,0.00020822,2]
[314552270,1708419039439,-168.36195189,0.00020822,2]
[314552272,1708419039450,-500.0,0.00020822,2]
[314552274,1708419039459,-500.0,0.00020822,2]
[314552276,1708419039469,-500.0,0.00020822,2]
[314552278,1708419039479,-610.54235504,0.00020822,2]
[314552280,1708419039489,-500.0,0.00020822,2]
[314552282,1708419039499,-500.0,0.00020822,2]
[314552284,1708419039509,-215.60179083,0.00020822,2]
[314552286,1708419039520,-500.0,0.00020822,2]
[314552288,1708419039530,-500.0,0.00020822,2]
[314552290,1708419039539,-500.0,0.00020822,2]
[314552292,1708419039549,-354.05687345,0.00020822,2]
[314552294,1708419039558,-500.0,0.00020822,2]
[314552296,1708419039567,-500.0,0.00020822,2]
[314552298,1708419039577,-500.0,0.00020822,2]
[314552300,1708419039587,-500.0,0.00020822,2]
[314552302,1708419039596,-500.0,0.00020822,2]
[314552304,1708419039605,-603.52031927,0.00020822,2]
[314552306,1708419039614,-500.0,0.00020822,2]
[314552308,1708419039623,-500.0,0.00020822,2]
[314552310,1708419039633,-500.0,0.00020822,2]
[314552312,1708419039643,-500.0,0.00020822,2]
[314552314,1708419039652,-500.0,0.00020822,2]
[314552316,1708419039661,-500.0,0.00020822,2]
[314552318,1708419039671,-500.0,0.00020822,2]
[314552320,1708419039681,-500.0,0.00020822,2]
[314552322,1708419039690,-500.0,0.00020822,2]
[314552323,1708419039699,-500.0,0.00020822,2]
[314552325,1708419039708,-500.0,0.00020822,2]
[314552327,1708419039717,-500.0,0.00020822,2]
[314552329,1708419039728,-500.0,0.00020822,2]
[314552331,1708419039737,-500.0,0.00020822,2]
[314552333,1708419039746,-500.0,0.00020822,2]
[314552335,1708419039755,-500.0,0.00020822,2]
[314552337,1708419039765,-500.0,0.00020822,2]
[314552339,1708419039775,-500.0,0.00020822,2]
[314552341,1708419039784,-500.0,0.00020822,2]
[314552343,1708419039793,-500.0,0.00020822,2]
[314552345,1708419039803,-500.0,0.00020822,2]
[314552347,1708419039812,-500.0,0.00020822,2]
[314552349,1708419039821,-500.0,0.00020822,2]
[314552351,1708419039830,-500.0,0.00020822,2]
[314552353,1708419039843,-500.0,0.00020822,2]
[314552355,1708419039852,-500.0,0.00020822,2]
[314552357,1708419039861,-500.0,0.00020822,2]
[314552359,1708419039870,-500.0,0.00020822,2]
[314552361,1708419039879,-500.0,0.00020822,2]
[314552363,1708419039888,-500.0,0.00020822,2]
[314552364,1708419039898,-500.0,0.00020822,2]
[314552366,1708419039906,-500.0,0.00020822,2]
[314552368,1708419039918,-500.0,0.00020822,2]
[314552370,1708419039927,-500.0,0.00020822,2]
[314552372,1708419039936,-500.0,0.00020822,2]
[314552374,1708419039945,-500.0,0.00020822,2]
[314552376,1708419039954,-500.0,0.00020822,2]
[314552378,1708419039963,-500.0,0.00020822,2]
[314552380,1708419039972,-500.0,0.00020822,2]
[314552382,1708419039981,-500.0,0.00020822,2]
[314552384,1708419039990,-500.0,0.00020822,2]
[314552386,1708419039999,-500.0,0.00020822,2]
[314552388,1708419040008,-500.0,0.00020822,2]
[314552390,1708419040017,-500.0,0.00020822,2]
[314552392,1708419040026,-500.0,0.00020822,2]
[314552394,1708419040035,-500.0,0.00020822,2]
[314552396,1708419040044,-500.0,0.00020822,2]
[314552398,1708419040053,-500.0,0.00020822,2]
[314552400,1708419040062,-500.0,0.00020822,2]
[314552402,1708419040071,-500.0,0.00020822,2]
[314552404,1708419040080,-500.0,0.00020822,2]
[314552406,1708419040090,-500.0,0.00020822,2]
[314552408,1708419040099,-500.0,0.00020822,2]
[314552409,1708419040108,-500.0,0.00020822,2]
[314552411,1708419040117,-500.0,0.00020822,2]
[314552413,1708419040126,-500.0,0.00020822,2]
[314552415,1708419040135,-500.0,0.00020822,2]
[314552417,1708419040144,-500.0,0.00020822,2]
[314552419,1708419040153,-500.0,0.00020822,2]
[314552421,1708419040162,-500.0,0.00020822,2]
[314552423,1708419040171,-500.0,0.00020822,2]
[314552425,1708419040180,-500.0,0.00020822,2]
[314552427,1708419040189,-500.0,0.00020822,2]
[314552429,1708419040199,-500.0,0.00020822,2]
[314552431,1708419040208,-600.47149101,0.00020822,2]
[314552433,1708419040216,-500.0,0.00020822,2]
[314552435,1708419040226,-500.0,0.00020822,2]
[314552437,1708419040234,-500.0,0.00020822,2]
[314552439,1708419040243,-500.0,0.00020822,2]
[314552441,1708419040252,-500.0,0.00020822,2]
[314552443,1708419040261,-500.0,0.00020822,2]
[314552445,1708419040270,-500.0,0.00020822,2]
[314552447,1708419040279,-500.0,0.00020822,2]
[314552448,1708419040288,-500.0,0.00020822,2]
[314552450,1708419040297,-500.0,0.00020822,2]
[314552452,1708419040308,-500.0,0.00020822,2]
[314552454,1708419040317,-500.0,0.00020822,2]
[314552456,1708419040327,-500.0,0.00020822,2]
[314552458,1708419040336,-500.0,0.00020822,2]
[314552460,1708419040345,-500.0,0.00020822,2]
[314552462,1708419040354,-500.0,0.00020822,2]
[314552464,1708419040363,-2107.48148876,0.00020822,2]
[314552466,1708419040373,-2107.48148876,0.00020822,2]
[314552468,1708419040382,-2107.48148876,0.00020822,2]
[314552470,1708419040391,-2107.48148876,0.00020822,2]
[314552472,1708419040400,-2107.48148876,0.00020822,2]
[314552474,1708419040409,-2107.48148876,0.00020822,2]
[314552476,1708419040418,-2107.48148876,0.00020822,2]
[314552478,1708419040427,-2107.48148876,0.00020822,2]
[314552480,1708419040435,-2107.48148876,0.00020822,2]
[314552482,1708419040444,-2107.48148876,0.00020822,2]
[314552483,1708419040454,-2107.48148876,0.00020822,2]
[314552485,1708419040463,-2107.48148876,0.00020822,2]
[314552487,1708419040472,-2107.48148876,0.00020822,2]
[314552490,1708419040484,-2107.48148876,0.00020822,2]
[314552491,1708419040493,-2107.48148876,0.00020822,2]
[314552493,1708419040503,-2107.48148876,0.00020822,2]
[314552495,1708419040512,-2107.48148876,0.00020822,2]
[314552497,1708419040521,-2107.48148876,0.00020822,2]
[314552499,1708419040530,-2107.48148876,0.00020822,2]
[314552501,1708419040539,-2107.48148876,0.00020822,2]
[314552503,1708419040547,-2107.48148876,0.00020822,2]
[314552505,1708419040556,-2107.48148876,0.00020822,2]
[314552507,1708419040565,-2107.48148876,0.00020822,2]
[314552509,1708419040574,-2107.48148876,0.00020822,2]
[314552511,1708419040583,-2107.48148876,0.00020822,2]
[314552513,1708419040593,-2107.48148876,0.00020822,2]
[314552514,1708419040602,-2107.48148876,0.00020822,2]
[314552516,1708419040611,-2107.48148876,0.00020822,2]
[314552518,1708419040620,-2107.48148876,0.00020822,2]
[314552520,1708419040630,-2107.48148875,0.00020822,2]
[314552522,1708419040640,-2107.48148875,0.00020822,2]
[314552524,1708419040649,-2107.48148875,0.00020822,2]
[314552526,1708419040658,-2107.48148875,0.00020822,2]
[314552528,1708419040667,-2107.48148875,0.00020822,2]
[314552530,1708419040676,-2107.48148875,0.00020822,2]
[314552532,1708419040685,-2107.48148875,0.00020822,2]
[314552534,1708419040695,-5499.99999404,0.00021,2]
[314552536,1708419040705,-300.0,0.00021003,2]
[314552538,1708419040714,-400.6071686,0.00021078,2]
[314552540,1708419040723,-300.0,0.0002129,2]
[314552542,1708419040732,-200.3472215,0.0002137,2]
[314552544,1708419040741,-3139.36485262,0.00021373,2]
[314552546,1708419040751,-300.0,0.00021577,2]
[314552548,1708419040760,-16235.95194419,0.0002159,2]
[314552550,1708419040769,-186.35083221,0.00021597,2]
[314552551,1708419040778,-200.0,0.00021698,2]
[314552553,1708419040787,-200.0,0.00021698,2]
[314552555,1708419040796,-200.0,0.00021698,2]
[314552557,1708419040805,-200.0,0.00021698,2]
[314552559,1708419040814,-200.0,0.00021698,2]
[314552561,1708419040823,-200.0,0.00021698,2]
[314552563,1708419040833,-200.0,0.00021698,2]
[314552565,1708419040844,-200.0,0.00021698,2]
[314552567,1708419040856,-200.0,0.00021698,2]
[314552569,1708419040865,-200.0,0.00021698,2]
[314552571,1708419040874,-200.0,0.00021698,2]
[314552573,1708419040883,-200.0,0.00021698,2]
[314552575,1708419040892,-222.0506,0.00021698,2]
[314552577,1708419040901,-200.0,0.00021698,2]
[314552579,1708419040911,-200.0,0.00021698,2]
[314552581,1708419040920,-200.0,0.00021698,2]
[314552583,1708419040929,-200.0,0.00021698,2]
[314552585,1708419040939,-200.0,0.00021698,2]
[314552587,1708419040949,-200.0,0.00021698,2]
[314552589,1708419040958,-200.0,0.00021698,2]
[314552590,1708419040967,-200.0,0.00021698,2]
[314552592,1708419040976,-200.0,0.00021698,2]
[314552594,1708419040985,-200.0,0.00021698,2]
[314552596,1708419040995,-200.0,0.00021698,2]
[314552598,1708419041005,-200.0,0.00021698,2]
[314552600,1708419041014,-200.0,0.00021698,2]
[314552602,1708419041023,-200.0,0.00021698,2]
[314552604,1708419041032,-200.0,0.00021698,2]
[314552606,1708419041041,-200.0,0.00021698,2]
[314552608,1708419041051,-200.0,0.00021698,2]
[314552610,1708419041059,-200.0,0.00021698,2]
[314552612,1708419041068,-200.0,0.00021698,2]
[314552614,1708419041077,-200.0,0.00021698,2]
[314552616,1708419041086,-200.0,0.00021698,2]
[314552617,1708419041095,-400.0,0.00021698,2]
[314552619,1708419041104,-181.0279602,0.00021815,2]
[314552621,1708419041113,-1164.370995,0.00021816,2]
[314552623,1708419041122,-276000.0,0.00021817,2]
[314552625,1708419041131,-15227.65393893,0.00021817,2]
[314552627,1708419041140,-205.356,0.00021838,2]
[314552629,1708419041148,-300.0,0.00021864,2]
[314552631,1708419041157,-2007.028755,0.000219,2]
[314552633,1708419041166,-580.0,0.000219,2]
[314552635,1708419041176,-329.1025,0.000219,2]
[314552637,1708419041185,-349.2024439,0.00021915,2]
[314552639,1708419041194,-776.14825599,0.00021915,2]
[314552640,1708419041204,-274.61037139,0.00021915,2]
[314552642,1708419041213,-282.03166312,0.00021916,2]
[314552644,1708419041223,-500.0,0.00021916,2]
[314552646,1708419041232,-205.2,0.00021916,2]
[314552648,1708419041242,-164.13392237,0.00021916,2]
[314552650,1708419041250,-174.54305424,0.00021916,2]
[314552652,1708419041259,-513289.47478489,0.00021917,2]
[314552655,1708419041275,-5579.93298044,0.00021917,2]
[314552688,1708419041613,-3397.76,0.00020132,3]
[314552690,1708419041622,-1974.39409857,0.00020142,2]
[314552692,1708419041632,-1745.07876229,0.00021917,2]
[314553185,1708419046519,-233.88,0.00021807,3]
[314553187,1708419046528,-18568.73930205,0.00021917,2]
[314553190,1708419046542,-47791.57264747,0.00021917,2]
[314554218,1708419268484,2864.08,0.0002104,15]
[314554306,1708420238659,-804.745079,0.00018637,2]
[314554309,1708420238669,-213.04130257,0.00018637,2]
[314554311,1708420238678,-250.396012,0.00018638,2]
[314554313,1708420238688,-250.0,0.00018701,2]
[314554315,1708420238698,-2949.26760643,0.00018827,2]
[314554317,1708420238710,-4553.80154377,0.00018827,2]
[314554319,1708420238719,-184.3500159,0.00019202,2]
[314554321,1708420238729,-364.48348166,0.00019448,2]
[314554323,1708420238740,-1156.6432218,0.00019448,2]
[314554326,1708420238760,-23378.87329654,0.00019448,2]
[314554328,1708420238769,-2223.6591129,0.00019448,2]
[314554330,1708420238778,-542.8274192,0.00019509,2]
[314554332,1708420238787,-186.35083221,0.00019716,2]
[314554335,1708420238797,-217.79988938,0.00019817,2]
[314554337,1708420238806,-3084.74,0.00020132,3]
[314554339,1708420238816,-2899.91,0.00020132,3]
[314554340,1708420238825,-3911.6,0.00020132,3]
[314554343,1708420238835,-3173.34883417,0.00020142,2]
[314554344,1708420238844,-4497.6435051,0.00020142,2]
[314554346,1708420238854,-5000.0,0.00020142,2]
[314554349,1708420238864,-5092.87420444,0.00020142,2]
[314554351,1708420238873,-5000.0,0.00020142,2]
[314554353,1708420238882,-5000.0,0.00020142,2]
[314554355,1708420238892,-50000.0,0.00020142,2]
[314554357,1708420238902,-73464.01706307,0.00020142,2]
[314554359,1708420238912,-919.28609412,0.00020149,2]
[314554361,1708420238927,-2379.80264351,0.00021,2]
[314554363,1708420238937,-9608.53942502,0.00021,2]
[314554365,1708420238946,-354.0766493,0.00021,2]
[314554367,1708420238955,-636.72794121,0.00021346,2]
[314554369,1708420238965,-194.9,0.0002158,3]
[314554371,1708420238974,-584.7,0.0002158,3]
[314554373,1708420238983,-500.0,0.00021589,2]
[314554375,1708420238993,-500.0,0.00021589,2]
[314554377,1708420239003,-500.0,0.00021589,2]
[314554379,1708420239012,-500.0,0.00021589,2]
[314554381,1708420239021,-500.0,0.00021589,2]